bitfinex/quotes_ETHUSD_20260107
["timestamp","ask_amount","ask_price","bid_price","bid_amount"]
[1767798241299,0.001,3168.8,3166.6,16.44912026]
[1767798241504,0.39815852,3168.8,3166.7,1.72691203]
[1767798241909,0.4294722,3168.8,3166.7,1.72691203]
[1767798242232,3.81942524,3168.0,3165.3,0.819]
[1767798242519,3.85073892,3167.9,3165.3,0.819]
[1767798242697,3.81942524,3167.8,3164.3,3.16022646]
[1767798242896,3.81942524,3167.3,3164.4,0.819]
[1767798243088,6.31492532,3167.1,3164.5,6.32006533]
[1767798243288,0.74530621,3167.0,3164.6,0.71390653]
[1767798243601,0.74530621,3167.0,3164.5,3.97900845]
[1767798243602,3.81942524,3166.8,3164.5,3.97900845]
[1767798243797,0.03131368,3166.7,3164.5,7.13906533]
[1767798244024,3.81942524,3166.7,3164.5,0.819]
[1767798244321,3.81942524,3166.3,3163.7,0.821]
[1767798244622,0.85631368,3166.2,3164.2,3.160346]
[1767798244807,0.46757389,3166.1,3164.2,0.3160346]
[1767798245009,0.825,3166.0,3164.4,3.16007884]
[1767798245191,6.31731892,3165.9,3163.4,3.66412509]
[1767798245391,3.81942524,3166.4,3164.3,6.32045338]
[1767798245596,4.01457411,3166.3,3164.3,3.16019677]
[1767798245820,7.17291537,3166.3,3164.3,6.32045338]
[1767798246025,0.71729154,3166.2,3164.4,0.71404534]
[1767798246195,0.74860522,3166.2,3164.4,0.71404534]
[1767798246512,0.74860522,3166.2,3163.8,0.82]
[1767798246709,0.74860522,3166.2,3164.3,3.16024367]
[1767798247124,3.15855969,3166.0,3163.8,0.82]
[1767798247311,3.15855969,3166.0,3163.9,6.3213123]
[1767798247626,3.15847434,3166.1,3163.9,13.14609354]
[1767798247822,0.31584743,3166.0,3164.0,2.21660935]
[1767798248411,0.31584743,3166.0,3164.1,0.82]
[1767798249223,6.31731892,3165.9,3164.2,6.32271296]
[1767798249425,9.47597838,3165.9,3164.2,0.002]
[1767798249625,3.81942524,3165.8,3164.2,0.002]
[1767798249801,0.99477406,3165.7,3164.2,0.002]
[1767798250223,0.825,3165.6,3164.2,0.002]
[1767798251204,6.3181172,3165.5,3164.2,0.002]
[1767798251409,9.4771758,3165.5,3164.2,0.002]
[1767798251725,13.29660104,3165.5,3163.9,0.002]
[1767798252026,0.39815852,3165.4,3163.9,0.002]
[1767798252240,0.825,3165.3,3163.9,0.002]
[1767798252840,0.825,3165.3,3162.6,0.002]
[1767798252841,4.64442524,3165.3,3162.7,3.1617628]
[1767798253133,4.64442524,3165.3,3162.6,0.822]
[1767798253433,3.81942524,3165.0,3162.6,3.98391362]
[1767798253639,3.81942524,3165.0,3162.7,6.32371074]
[1767798254000,3.81942524,3165.0,3162.7,9.48556611]
[1767798254198,3.81942524,3165.0,3162.7,12.64742148]
[1767798254404,3.66365945,3165.2,3162.8,3.66412509]
[1767798254595,3.66365945,3165.2,3163.8,0.003]
[1767798254596,0.825,3165.2,3163.8,0.003]
[1767798254797,3.81942524,3164.6,3162.6,0.002]
[1767798255105,3.81942524,3164.4,3162.6,0.002]
[1767798255362,0.825,3164.3,3162.6,0.002]
[1767798255568,6.3183168,3165.4,3162.6,4.48612509]
[1767798255810,0.66314536,3165.3,3162.9,0.25952256]
[1767798255959,0.66314536,3165.3,3162.8,3.66412509]
[1767798256160,0.66314536,3165.3,3162.8,3.61412509]
[1767798256361,4.4825706,3165.3,3162.8,3.61412509]
[1767798256905,6.21113695,3164.6,3162.6,0.002]
[1767798257066,5.26553894,3164.5,3162.6,0.002]
[1767798257417,0.03131368,3165.0,3162.6,0.002]
[1767798257700,0.03131368,3165.0,3162.8,3.66412509]
[1767798257701,0.825,3165.0,3162.8,3.66412509]
[1767798257866,0.85631368,3165.0,3162.8,3.66412509]
[1767798258062,0.03131368,3165.0,3162.8,3.66412509]
[1767798258300,0.66632125,3165.0,3162.9,0.39236477]
[1767798258501,4.48574649,3165.0,3162.9,0.39236477]
[1767798258671,7.11942524,3164.9,3162.6,0.002]
[1767798258863,0.66632125,3165.0,3162.6,3.66612509]
[1767798258864,0.63500757,3165.0,3162.6,3.66612509]
[1767798259069,3.15842511,3166.2,3162.6,3.66612509]
[1767798259070,3.81942524,3166.3,3162.7,3.92364765]
[1767798259273,6.31672034,3166.2,3163.4,3.66412509]
[1767798259500,6.31672034,3166.2,3163.5,0.77]
[1767798259501,4.64442524,3166.1,3163.5,0.77]
[1767798259683,4.67573892,3166.1,3163.5,0.77]
[1767798259890,0.825,3166.0,3163.5,0.77]
[1767798260213,0.46757389,3165.9,3163.8,3.66412509]
[1767798260502,0.001,3166.7,3163.9,3.92364765]
[1767798260710,0.001,3166.7,3164.3,3.92364765]
[1767798260873,0.001,3166.7,3164.5,3.92364765]
[1767798261074,3.81942524,3168.2,3164.5,3.92364765]
[1767798261075,3.81942524,3168.9,3165.7,0.25952256]
[1767798261275,3.81942524,3168.9,3166.2,3.66412509]
[1767798261503,0.38194252,3168.8,3166.4,3.66412509]
[1767798261691,4.23268144,3168.8,3166.3,1.62979648]
[1767798261898,3.81942524,3168.2,3165.3,3.15916225]
[1767798262084,0.001,3165.8,3165.1,0.82]
[1767798262285,3.81942524,3167.6,3165.4,6.31828522]
[1767798262485,0.38194252,3167.5,3165.5,0.63182852]
[1767798262694,0.03131368,3167.4,3165.5,0.63182852]
[1767798262888,0.825,3167.7,3165.4,6.31828522]
[1767798263103,0.03131368,3167.6,3165.4,3.15912682]
[1767798263301,6.31412786,3167.5,3165.4,7.13828522]
[1767798263477,0.03131368,3167.4,3165.4,10.29744362]
[1767798263814,0.38194252,3168.8,3165.4,13.45660202]
[1767798264115,0.38194252,3168.8,3166.2,0.25952256]
[1767798264279,3.15477317,3169.8,3166.5,3.66412509]
[1767798264482,0.825,3169.5,3166.6,0.25952256]
[1767798264705,0.825,3169.5,3166.5,3.66412509]
[1767798264706,0.03131368,3169.4,3166.5,3.66412509]
[1767798265012,0.03131368,3169.4,3166.7,3.66412509]
[1767798265227,0.03131368,3169.4,3166.9,3.92364765]
[1767798265506,10.12897158,3169.8,3166.8,0.82]
[1767798265507,6.30835224,3170.4,3167.1,3.92364765]
[1767798265712,0.85631368,3170.3,3167.1,3.92364765]
[1767798266313,4.67573892,3170.3,3167.1,3.92364765]
[1767798266523,3.85073892,3170.3,3167.2,0.82]
[1767798266710,3.81942524,3170.1,3167.3,0.82]
[1767798266913,0.825,3170.2,3167.3,0.44841251]
[1767798266914,4.31518144,3170.0,3167.3,0.44841251]
[1767798267225,4.31518144,3170.0,3167.3,0.82]
[1767798267413,3.81942524,3169.8,3167.4,6.3143272]
[1767798267931,3.81942524,3169.6,3166.7,0.82]
[1767798268127,3.81942524,3169.4,3166.7,3.97776849]
[1767798268433,0.85631368,3169.5,3165.9,3.66412509]
[1767798268434,3.81942524,3169.2,3165.9,3.66412509]
[1767798268598,3.81942524,3169.1,3166.0,0.82]
[1767798268799,3.97942524,3168.6,3165.5,1.3456602]
[1767798268997,3.81942524,3167.7,3164.1,3.16040699]
[1767798269330,6.21113695,3167.8,3164.1,13.14549417]
[1767798269331,10.13375244,3167.4,3164.1,13.14549417]
[1767798269496,0.85631368,3167.3,3164.2,3.66412509]
[1767798269828,0.03131368,3167.3,3164.2,3.66412509]
[1767798270030,0.824,3167.2,3164.2,3.66412509]
[1767798270266,10.13375244,3167.4,3164.4,3.66412509]
[1767798270433,0.824,3167.1,3164.4,3.66412509]
[1767798270610,6.3143272,3167.4,3164.4,3.66412509]
[1767798270611,3.1571636,3167.4,3164.4,3.66412509]
[1767798270808,0.824,3167.3,3164.6,3.66412509]
[1767798271134,0.824,3167.3,3164.8,3.92364765]
[1767798271334,0.02996307,3167.6,3165.2,0.25952256]
[1767798271640,0.02996307,3167.6,3165.1,9.47837349]
[1767798271641,9.47119179,3167.5,3165.1,7.13891566]
[1767798271802,0.02996307,3167.4,3165.1,7.13891566]
[1767798272212,0.02996307,3167.4,3165.1,7.08891566]
[1767798272501,6.31412786,3167.5,3165.1,10.24837349]
[1767798272721,1.45541279,3167.4,3165.2,1.02483735]
[1767798273125,0.66137586,3167.4,3165.2,1.02483735]
[1767798273434,6.31472594,3167.2,3165.1,7.08891566]
[1767798273613,0.02996307,3167.1,3165.1,7.08891566]
[1767798274023,3.15728207,3167.3,3165.1,10.24837349]
[1767798274349,0.63141279,3167.4,3165.1,13.40783132]
[1767798274520,0.001,3167.1,3165.1,13.40783132]
[1767798274718,0.001,3167.1,3165.1,10.24837349]
[1767798274937,0.001,3167.1,3165.1,13.40783132]
[1767798275328,0.03096307,3167.1,3165.0,6.31911532]
[1767798275624,0.03096307,3167.1,3165.1,0.82]
[1767798275822,0.824,3167.0,3165.1,0.82]
[1767798276061,0.824,3167.0,3164.7,0.002]
[1767798276062,4.42632448,3167.0,3164.7,0.002]
[1767798276229,4.04805324,3166.9,3164.7,0.002]
[1767798276434,4.04805324,3166.9,3164.9,3.15965749]
[1767798276435,0.824,3166.8,3164.9,3.15965749]
[1767798276628,0.824,3166.7,3164.9,6.31931498]
[1767798276951,0.824,3166.7,3164.7,0.002]
[1767798277333,6.31592244,3166.6,3164.7,0.002]
[1767798277528,0.71399224,3166.5,3164.7,0.002]
[1767798278258,0.824,3166.4,3164.7,0.002]
[1767798278654,0.824,3166.3,3164.7,0.002]
[1767798279339,6.31672034,3166.2,3164.7,0.002]
[1767798279730,0.824,3166.1,3164.7,0.002]
[1767798279934,0.71407203,3166.0,3164.7,0.002]
[1767798281253,0.825,3165.9,3164.7,0.002]
[1767798281420,6.31751846,3165.8,3164.7,0.002]
[1767798282541,9.91984294,3165.8,3164.4,0.002]
[1767798283044,6.31751846,3165.8,3164.4,0.002]
[1767798283221,0.54897951,3165.7,3164.4,0.002]
[1767798283552,6.3179176,3165.6,3164.4,0.002]
[1767798284348,0.825,3165.9,3164.0,0.7692989]
[1767798284753,9.50444511,3166.4,3164.0,0.7692989]
[1767798284954,7.14132136,3166.4,3164.1,4.57633537]
[1767798285310,0.78553136,3166.3,3164.3,3.75633537]
[1767798285452,3.15826043,3166.3,3164.4,9.48047022]
[1767798285649,3.15756236,3167.0,3164.5,3.75633537]
[1767798285853,3.15756236,3167.0,3164.4,12.64062696]
[1767798285854,0.825,3166.9,3164.6,4.57633537]
[1767798286065,0.001,3167.1,3164.8,3.75633537]
[1767798286355,0.001,3167.1,3165.4,3.75633537]
[1767798286567,0.001,3167.1,3165.5,0.40158579]
[1767798286735,0.001,3167.1,3165.6,0.82]
[1767798286939,0.001,3167.1,3165.6,4.57633537]
[1767798287143,0.001,3167.1,3165.6,3.75633537]
[1767798287341,0.001,3167.1,3165.7,0.82]
[1767798287536,0.001,3167.1,3165.8,0.45763354]
[1767798287835,0.001,3167.1,3165.9,0.82]
[1767798287836,0.001,3166.2,3165.9,0.82]
[1767798288049,0.001,3167.1,3165.9,0.82]
[1767798288245,0.001,3167.1,3165.9,4.57633537]
[1767798288451,9.46733755,3168.8,3165.9,4.57633537]
[1767798288778,4.42732448,3168.9,3165.9,4.57633537]
[1767798288779,1.41942927,3168.7,3166.1,4.01585793]
[1767798289073,3.15507177,3169.5,3166.1,4.01585793]
[1767798289278,3.60232448,3170.3,3166.3,3.75633537]
[1767798289576,0.001,3170.8,3167.7,3.75633537]
[1767798289782,0.001,3170.8,3167.9,3.75633537]
[1767798289967,0.001,3170.8,3168.1,3.75633537]
[1767798290168,0.001,3170.8,3168.5,3.75633537]
[1767798290355,0.001,3170.8,3168.7,3.75633537]
[1767798290883,0.001,3170.8,3168.8,0.82]
[1767798291190,0.001,3170.8,3168.8,4.57633537]
[1767798291361,0.001,3170.8,3168.4,7.45212948]
[1767798291362,0.001,3170.8,3169.2,3.75633537]
[1767798291564,0.001,3170.8,3169.3,4.35090442]
[1767798291764,0.001,3170.8,3168.4,3.75633537]
[1767798291964,0.001,3170.8,3168.5,0.82]
[1767798292248,0.001,3170.8,3168.6,0.82]
[1767798292460,0.001,3170.8,3169.2,3.15530751]
[1767798292753,0.001,3170.8,3169.3,0.82]
[1767798292948,0.001,3170.8,3169.4,0.39753327]
[1767798293280,0.001,3170.8,3169.4,0.819]
[1767798293779,0.001,3170.8,3169.5,0.819]
[1767798293987,0.001,3170.8,3169.6,0.819]
[1767798294185,0.001,3170.8,3169.7,0.819]
[1767798294385,0.001,3170.8,3169.8,0.819]
[1767798294984,0.001,3170.8,3169.9,0.819]
[1767798295361,0.001,3170.8,3168.8,3.75633537]
[1767798295675,0.001,3170.8,3168.9,4.35030269]
[1767798296277,0.001,3170.8,3168.9,7.50597184]
[1767798296578,0.001,3170.8,3169.0,3.75633537]
[1767798297182,0.001,3170.8,3169.1,0.819]
[1767798297349,0.001,3170.8,3169.0,3.75633537]
[1767798297549,0.001,3170.8,3169.2,3.97435558]
[1767798297860,0.001,3170.8,3169.3,0.819]
[1767798298060,0.001,3170.8,3169.3,4.57533537]
[1767798298381,0.001,3170.8,3169.4,0.819]
[1767798299273,0.001,3170.8,3169.3,3.75633537]
[1767798299469,0.001,3170.8,3169.6,3.15497223]
[1767798299675,3.60062338,3172.0,3169.6,3.15497223]
[1767798299971,3.15230423,3172.3,3169.7,3.75633537]
[1767798300318,0.823,3172.4,3169.8,4.01585793]
[1767798300489,3.88151045,3172.8,3169.8,4.53387525]
[1767798300660,0.47045105,3172.7,3169.9,1.27238753]
[1767798300986,3.91147352,3172.6,3169.9,0.45338753]
[1767798301184,4.26066537,3172.6,3169.8,0.819]
[1767798301353,3.91147352,3172.6,3169.8,0.819]
[1767798301683,3.88151045,3172.4,3169.5,3.15506768]
[1767798301890,3.92313982,3172.2,3169.6,0.819]
[1767798302085,3.92313982,3172.0,3168.8,3.70799151]
[1767798302253,3.92313982,3171.8,3168.9,0.37079915]
[1767798302459,3.92313982,3171.4,3168.9,0.37079915]
[1767798302675,3.92313982,3171.2,3168.7,0.819]
[1767798302875,3.95310289,3171.1,3168.7,0.819]
[1767798303352,0.16,3170.8,3166.9,3.70799151]
[1767798303557,3.92313982,3170.5,3167.0,3.97656236]
[1767798303758,0.34919185,3170.4,3167.0,0.819]
[1767798303976,0.34919185,3170.4,3167.1,0.76846336]
[1767798303977,4.35037299,3170.3,3167.1,0.76846336]
[1767798304182,3.92313982,3170.2,3167.1,4.47645487]
[1767798304389,0.42723317,3170.3,3167.1,4.47645487]
[1767798304658,6.30795432,3170.6,3167.1,4.47645487]
[1767798304659,4.74613982,3170.4,3167.2,1.07852256]
[1767798304855,0.823,3170.3,3167.3,3.70799151]
[1767798305085,3.92313982,3170.4,3167.3,3.70799151]
[1767798305311,4.74613982,3170.4,3167.3,3.70799151]
[1767798305492,6.30855124,3170.3,3167.4,13.17948231]
[1767798305805,13.38208798,3171.6,3168.5,3.70799151]
[1767798306091,0.85296307,3171.5,3168.8,3.96751407]
[1767798306405,4.74613982,3171.5,3168.0,3.70799151]
[1767798306565,5.65894689,3171.4,3168.1,1.44932171]
[1767798306763,3.92313982,3171.3,3168.1,1.44932171]
[1767798306977,3.92313982,3171.3,3168.3,0.25952256]
[1767798307288,4.77610289,3171.2,3168.4,0.819]
[1767798307465,16.53785486,3170.9,3168.2,3.70799151]
[1767798307670,3.95310289,3170.8,3168.3,0.819]
[1767798308058,3.95310289,3170.8,3167.6,3.15695708]
[1767798308263,3.95310289,3170.8,3167.7,0.819]
[1767798308464,3.92313982,3170.6,3167.7,0.819]
[1767798308680,3.92313982,3170.4,3167.7,0.819]
[1767798308888,3.92313982,3170.2,3167.7,0.819]
[1767798309093,3.92313982,3170.2,3167.1,0.76846336]
[1767798309300,3.92313982,3170.2,3167.2,0.819]
[1767798309493,3.92313982,3170.0,3167.3,0.819]
[1767798309692,3.92313982,3169.8,3167.3,0.819]
[1767798309891,3.92313982,3169.8,3167.3,7.13352656]
[1767798310075,4.74613982,3170.0,3167.3,3.97626328]
[1767798310272,4.40075011,3169.9,3167.4,1.21662633]
[1767798310472,4.40075011,3169.9,3167.5,0.819]
[1767798311211,4.74613982,3169.8,3166.2,3.70799151]
[1767798311363,3.92313982,3169.6,3166.3,0.819]
[1767798311576,3.92313982,3169.4,3166.3,0.819]
[1767798311781,15.77535885,3169.5,3165.5,3.70799151]
[1767798311782,3.92313982,3169.0,3165.5,3.70799151]
[1767798312080,3.92313982,3168.8,3165.6,1.18979915]
[1767798312311,3.92313982,3168.6,3165.6,0.819]
[1767798312606,3.92313982,3168.6,3164.8,3.70799151]
[1767798312797,3.92313982,3168.6,3164.9,0.819]
[1767798313003,3.92313982,3168.6,3165.2,3.15934515]
[1767798313207,3.92313982,3168.4,3165.3,0.819]
[1767798313376,3.92313982,3168.2,3165.3,0.819]
[1767798313581,3.92313982,3168.0,3164.9,3.15965749]
[1767798313773,0.823,3167.9,3165.4,0.819]
[1767798313977,3.92313982,3167.7,3164.6,3.16188274]
[1767798314207,3.92313982,3167.7,3164.7,3.97880655]
[1767798314506,3.92313982,3167.5,3164.8,6.71759249]
[1767798315008,0.40831398,3167.6,3164.9,3.96751407]
[1767798315222,0.823,3167.7,3164.9,3.96751407]
[1767798315587,3.15696426,3167.6,3165.1,3.70799151]
[1767798315792,6.31392852,3167.6,3165.2,0.819]
[1767798317116,10.23706834,3167.6,3164.8,0.39808065]
[1767798317313,3.92313982,3167.5,3164.9,0.819]
[1767798317495,3.92313982,3167.5,3164.9,3.97865011]
[1767798317817,9.4714908,3167.4,3164.9,0.819]
[1767798317991,6.3143272,3167.4,3164.9,0.819]
[1767798318187,3.92313982,3167.5,3164.9,3.97864883]
[1767798318389,0.823,3167.4,3165.0,0.39786488]
[1767798318588,6.31273278,3168.2,3165.1,3.96751407]
[1767798318778,0.823,3168.1,3165.1,3.70799151]
[1767798318983,0.02996307,3168.0,3165.2,0.819]
[1767798319215,0.823,3168.1,3165.2,0.819]
[1767798319412,4.66667617,3168.0,3165.3,0.45269915]
[1767798319715,3.92313982,3167.8,3165.4,0.819]
[1767798319890,0.823,3167.7,3165.4,7.13727339]
[1767798320286,3.92313982,3168.6,3165.6,0.25952256]
[1767798320617,0.40831398,3168.9,3166.4,3.70799151]
[1767798320818,0.823,3169.6,3166.7,3.96751407]
[1767798320982,3.92313982,3170.5,3166.5,0.37079915]
[1767798320983,4.77610289,3169.5,3166.5,0.37079915]
[1767798321187,4.77610289,3169.5,3166.6,0.819]
[1767798321584,13.38895246,3169.3,3166.6,0.819]
[1767798321919,3.95310289,3169.2,3166.7,0.819]
[1767798322102,0.823,3169.1,3166.7,0.819]
[1767798322310,4.77610289,3169.0,3166.7,0.819]
[1767798322606,0.47761029,3168.9,3166.8,0.39769364]
[1767798322794,0.02996307,3168.8,3166.8,0.39769364]
[1767798323116,0.823,3168.7,3166.7,0.819]
[1767798323424,3.92313982,3169.7,3166.7,4.52699151]
[1767798323626,7.16290753,3169.6,3167.0,6.31512472]
[1767798323793,0.823,3169.8,3167.1,3.70799151]
[1767798323994,0.823,3169.8,3167.3,3.70799151]
[1767798324186,0.823,3169.8,3167.4,0.819]
[1767798324415,0.02996307,3169.7,3167.4,0.819]
[1767798324586,0.02996307,3169.7,3167.4,4.52699151]
[1767798324792,3.15313996,3171.5,3167.8,3.70799151]
[1767798325021,3.15313996,3171.5,3167.7,0.25952256]
[1767798325022,3.92313982,3171.3,3168.0,3.70799151]
[1767798325221,3.92313982,3171.1,3168.1,0.819]
[1767798325425,3.92313982,3171.1,3168.2,3.96751407]
[1767798325921,3.18354238,3171.0,3168.4,3.70799151]
[1767798326095,3.97648641,3171.1,3168.6,3.70799151]
[1767798326289,3.97648641,3171.1,3168.7,4.07879066]
[1767798326290,0.39764864,3171.0,3168.7,4.07879066]
[1767798326509,0.02996307,3170.9,3168.8,0.819]
[1767798327021,3.46849556,3171.4,3168.8,4.52699151]
[1767798327211,0.02996307,3171.3,3168.9,0.819]
[1767798327522,6.30644105,3171.4,3168.9,4.52699151]
[1767798327817,0.823,3171.6,3169.0,4.4272214]
[1767798327818,3.78393801,3171.3,3169.0,4.4272214]
[1767798328229,3.92313982,3172.5,3169.2,0.25952256]
[1767798328426,0.85296307,3172.4,3169.2,3.96751407]
[1767798329091,0.02996307,3172.4,3169.2,3.96751407]
[1767798329287,3.15190261,3172.7,3169.2,3.96751407]
[1767798329486,0.31519026,3172.6,3169.6,3.96751407]
[1767798329699,0.00708805,3173.9,3169.5,7.45212948]
[1767798329700,3.92313982,3174.1,3170.4,3.70799151]
[1767798329916,3.92313982,3174.1,3170.3,0.25952256]
[1767798329917,4.74613982,3174.1,3171.0,3.70799151]
[1767798330118,3.95310289,3174.0,3171.1,0.819]
[1767798330693,0.823,3173.9,3171.1,4.52699151]
[1767798330894,0.50757336,3173.8,3171.2,0.45269915]
[1767798331228,4.40075011,3173.8,3171.3,0.819]
[1767798331413,3.92313982,3173.6,3170.3,3.70799151]
[1767798331613,3.92313982,3173.4,3169.9,3.15467364]
[1767798331801,3.92313982,3173.4,3169.7,3.15487074]
[1767798331802,3.79346935,3173.2,3170.4,0.819]
[1767798332120,0.85296307,3173.1,3170.4,4.36083842]
[1767798332321,0.46464324,3173.0,3170.5,0.43608384]
[1767798332524,0.02996307,3172.9,3170.6,0.819]
[1767798332901,0.46464324,3173.0,3170.6,4.36083842]
[1767798333100,6.3025872,3173.3,3170.6,4.36083842]
[1767798333399,6.3025872,3173.3,3170.6,3.54183842]
[1767798333726,6.30298446,3173.1,3170.7,0.819]
[1767798333929,3.82343242,3173.0,3170.8,0.819]
[1767798334223,1.32779091,3172.9,3170.8,0.819]
[1767798334427,0.02996307,3172.8,3170.9,0.819]
[1767798334630,1.32779091,3172.9,3170.9,0.819]
[1767798335400,6.30298446,3173.1,3170.9,0.819]
[1767798335401,0.02996307,3172.8,3170.9,0.819]
[1767798335727,0.02996307,3173.0,3171.0,0.819]
[1767798336022,3.15169088,3172.9,3171.0,0.819]
[1767798336197,0.02996307,3172.8,3171.0,0.819]
[1767798336396,0.001,3172.6,3171.0,0.819]
[1767798337227,0.001,3172.6,3171.0,3.97257931]
[1767798337401,0.001,3172.6,3171.0,10.66799704]
[1767798337999,0.001,3172.6,3171.0,7.51441773]
[1767798338501,0.001,3172.6,3171.0,10.66799704]
[1767798338702,0.001,3172.6,3171.1,1.0667997]
[1767798340128,0.001,3172.6,3171.2,0.818]
[1767798341803,0.001,3172.6,3171.3,3.15328098]
[1767798342121,0.001,3172.6,3171.2,0.818]
[1767798344034,0.001,3172.6,3170.6,3.15393923]
[1767798344241,0.001,3172.6,3170.2,3.54183842]
[1767798344534,3.79446935,3172.6,3170.3,0.35418384]
[1767798344732,4.64543242,3172.5,3170.3,1.17218384]
[1767798344949,4.61546935,3172.5,3170.3,0.818]
[1767798345245,0.822,3172.4,3170.3,3.97221814]
[1767798345442,3.79346935,3172.5,3170.6,3.15392954]
[1767798345606,0.001,3172.6,3170.6,3.15392954]
[1767798345800,0.001,3172.6,3170.5,3.54183842]
[1767798346005,0.001,3172.6,3170.7,3.54183842]
[1767798346655,0.03096307,3172.6,3170.6,0.98501907]
[1767798346807,0.03096307,3172.6,3170.4,3.15417612]
[1767798347008,0.001,3172.6,3170.4,6.30835224]
[1767798347316,0.001,3172.6,3170.5,3.54183842]
[1767798348047,0.001,3172.6,3170.7,3.54183842]
[1767798348503,0.001,3172.3,3170.7,3.54183842]
[1767798348711,0.001,3172.3,3170.8,0.98497927]
[1767798349017,0.001,3172.3,3170.9,0.818]
[1767798349563,0.001,3172.6,3171.0,3.80136098]
[1767798349859,3.79346935,3174.7,3171.6,3.80136098]
[1767798350023,3.82343242,3174.7,3171.8,3.80136098]
[1767798350223,1.01230418,3174.6,3172.0,3.80136098]
[1767798350453,7.13172754,3175.2,3172.0,3.80136098]
[1767798350454,3.79346935,3175.3,3172.0,3.80136098]
[1767798350663,3.79346935,3175.1,3172.0,3.80136098]
[1767798350842,0.02996307,3175.0,3172.0,3.80136098]
[1767798351021,3.82343242,3175.0,3172.0,3.80136098]
[1767798351227,3.79346935,3174.8,3172.0,3.80136098]
[1767798351526,6.29881582,3175.2,3172.3,3.80136098]
[1767798351727,6.29841908,3175.4,3172.3,3.80136098]
[1767798352028,0.02996307,3175.3,3172.5,3.80136098]
[1767798352228,0.02996307,3175.3,3172.1,0.42632971]
[1767798352229,3.82343242,3175.3,3172.1,0.42632971]
[1767798352428,3.79346935,3175.1,3172.3,0.25952256]
[1767798352630,3.79346935,3174.9,3172.3,6.56405495]
[1767798352963,1.95694801,3175.2,3172.8,0.25952256]
[1767798353129,6.29841908,3175.4,3172.9,0.818]
[1767798353333,4.64543242,3175.3,3172.9,0.818]
[1767798353646,3.79346935,3175.3,3173.0,0.25952256]
[1767798353851,6.29881582,3175.2,3173.0,0.25952256]
[1767798354070,0.02996307,3175.1,3172.7,3.54183842]
[1767798354273,0.63287789,3175.0,3173.1,0.818]
[1767798354423,0.66284096,3175.0,3173.1,0.818]
[1767798354625,0.66284096,3175.0,3172.8,0.35418384]
[1767798354626,3.79346935,3174.8,3172.8,0.35418384]
[1767798354866,0.63287789,3175.0,3172.5,0.818]
[1767798354867,3.82343242,3174.7,3172.5,0.818]
[1767798355157,4.61546935,3174.7,3172.5,0.818]
[1767798355526,4.61546935,3174.7,3172.7,3.1518783]
[1767798355527,3.79346935,3174.7,3172.7,3.1518783]
[1767798355727,3.14940791,3175.2,3173.0,6.30316474]
[1767798355930,3.79346935,3175.3,3173.0,0.25952256]
[1767798356125,0.40931001,3175.2,3173.1,0.3801361]
[1767798356433,0.37934694,3175.2,3173.2,0.818]
[1767798356837,3.82343242,3175.1,3173.2,0.818]
[1767798357659,0.822,3175.0,3173.2,0.818]
[1767798357850,6.29802242,3175.6,3173.2,3.96933934]
[1767798358049,6.29802242,3175.6,3173.3,0.39693393]
[1767798358050,1.32404208,3175.5,3173.3,0.39693393]
[1767798358252,0.822,3175.4,3173.2,0.818]
[1767798358565,0.02996307,3175.3,3173.2,0.818]
[1767798358762,3.79346935,3175.3,3173.2,0.818]
[1767798358937,0.822,3175.2,3173.2,0.818]
[1767798359137,3.79346935,3175.3,3173.2,0.818]
[1767798359363,0.37934694,3175.2,3173.2,0.818]
[1767798359563,3.79346935,3175.3,3173.3,0.25952256]
[1767798359739,0.02996307,3175.2,3173.2,0.818]
[1767798360064,0.001,3174.9,3173.2,0.818]
[1767798360437,3.79346935,3174.7,3172.1,3.15238946]
[1767798360633,3.79346935,3174.6,3172.3,3.15224462]
[1767798360837,0.37934694,3174.5,3172.4,0.71226303]
[1767798361133,0.001,3174.9,3172.4,4.25410145]
[1767798361331,0.001,3174.9,3173.2,6.30276391]
[1767798361532,0.001,3174.9,3173.5,3.54183842]
[1767798361732,3.14795276,3176.7,3173.7,3.82023026]
[1767798361980,3.66929007,3176.6,3173.9,3.82023026]
[1767798362133,0.36692901,3176.5,3174.1,3.82023026]
[1767798362333,3.69392901,3176.5,3174.1,3.82023026]
[1767798362535,4.06618215,3176.5,3174.1,3.5607077]
[1767798362735,3.66929007,3176.4,3174.1,3.5607077]
[1767798362934,3.66929007,3176.2,3173.8,0.818]
[1767798363135,3.66929007,3176.0,3173.8,0.818]
[1767798363381,3.66929007,3175.8,3173.8,0.818]
[1767798363539,3.66929007,3175.6,3173.8,0.818]
[1767798363865,3.66929007,3175.4,3173.8,0.818]
[1767798364068,3.66929007,3175.2,3173.8,0.818]
[1767798364272,0.99978706,3175.1,3173.8,0.818]
[1767798364475,3.14891205,3175.7,3173.8,0.818]
[1767798364776,9.96719373,3175.7,3173.8,0.818]
[1767798365087,3.69925314,3175.6,3173.7,0.818]
[1767798365288,6.29790366,3175.7,3173.7,0.818]
[1767798365568,3.1486146,3176.0,3173.9,3.15069787]
[1767798365770,0.6667143,3175.9,3174.0,0.31506979]
[1767798365956,3.14881289,3175.8,3174.0,0.31506979]
[1767798366147,3.81542918,3175.9,3174.0,0.31506979]
[1767798366341,3.1482181,3176.4,3174.1,3.82023026]
[1767798366540,6.2964362,3176.4,3174.1,3.82023026]
[1767798366740,0.75153283,3176.3,3174.2,0.72858092]
[1767798367357,4.26750906,3176.3,3174.2,0.72858092]
[1767798367563,4.26750906,3176.3,3174.2,0.818]
[1767798367861,0.822,3176.2,3174.2,0.818]
[1767798368062,0.822,3176.1,3174.2,0.818]
[1767798368265,3.48601316,3176.0,3174.2,0.818]
[1767798368574,3.14771325,3177.0,3174.3,3.7458693]
[1767798368743,0.31477133,3176.9,3174.5,3.7458693]
[1767798368947,0.822,3177.0,3174.5,3.7458693]
[1767798369142,0.822,3176.9,3174.5,3.48634674]
[1767798369458,3.48601316,3176.8,3174.5,0.818]
[1767798369987,4.33797623,3176.7,3174.5,0.818]
[1767798370290,12.93007283,3176.6,3174.5,0.818]